Cogmind - Beta 15 @@@ ROGUE MODE // 2025.06.07 @ 05:38:04 Player: The Gourd Result: Destroyed by D-53 Grenadier with Mini Grenade Launcher Performance ------------- Evolutions (0) 0 Regions Visited (2) 400 Robots Destroyed (25) 125 Value Destroyed (546) 546 Prototype IDs (0) 0 Alien Tech Used (0) 0 Bonus (0) 0 TOTAL SCORE: 1071 Bonus ------- None Cogmind --------- Core Integrity 0/250 Matter 300/300 Energy 250/250 System Corruption 0% Temperature Cool (0) Movement Rolling (140) Ox4 Location -10/Mines Parts ------- > --- POWER (1) -------- Ion Engine > --- PROPULSION (2) --- Aluminum Leg Wheel > --- UTILITY (2) ------ High-capacity Storage Unit Hacking Suite > --- WEAPON (2) ------- Light Assault Rifle Light Assault Rifle > --- INVENTORY (20) --- Ion Engine Aluminum Leg Wheel Wheel Backup Propulsion I Backup Propulsion I Light Armor Plating Light Armor Plating Light Armor Plating Light Armor Plating Light Assault Rifle Datajack Mining Laser Peak State ------------ > --- POWER ------------ Ion Engine > --- PROPULSION ------- Aluminum Leg Wheel > --- UTILITY ---------- Large Storage Unit Hacking Suite > --- WEAPON ----------- Light Assault Rifle Light Assault Rifle > --- INVENTORY -------- Ion Engine Aluminum Leg Large Storage Unit Light Armor Plating Light Armor Plating Light Armor Plating Light Armor Plating Light Assault Rifle Datajack Mining Laser [Rating: 10] Favorites ----------- Power Ion Engine Engine Ion Engine Propulsion Aluminum Leg Treads Light Treads Leg Aluminum Leg Wheel Wheel Hover Unit Backup Propulsion I Utility Hacking Suite Device Seismic Detector Storage Small Storage Unit Hackware Hacking Suite Protection Light Armor Plating Weapon Light Assault Rifle Energy Gun Medium Laser Ballistic Gun Light Assault Rifle Special Weapon Mining Laser Build | -11 -10 -10 ------- Run | Yrd Mat Min Slots Evolved . | . . . Power . | . . . Propulsion . | . . . Utility . | . . . Weapon . | . . . Parts Attached 24 | 8 16 . Power 4 | 1 3 . Engine 4 | 1 3 . Core . | . . . Reactor . | . . . Propulsion 7 | 2 5 . Treads 2 | 2 . . Leg 2 | . 2 . Wheel 3 | . 3 . Hover . | . . . Flight . | . . . Utility 8 | 3 5 . Device 2 | 2 . . Storage 4 | 1 3 . Processor . | . . . Hackware 1 | . 1 . Protection 1 | . 1 . Artifact . | . . . Weapon 5 | 2 3 . Energy Gun 1 | . 1 . Energy Cannon . | . . . Ballistic Gun 3 | 2 1 . Ballistic Cannon . | . . . Launcher . | . . . Special Weapon 1 | . 1 . Impact Weapon . | . . . Slashing Weapon . | . . . Piercing Weapon . | . . . Special Melee Weapon . | . . . Unidentified Prototypes . | . . . Parts Lost 7 | . 7 . Power 2 | . 2 . Propulsion 3 | . 3 . Utility . | . . . Weapon 2 | . 2 . Highest Loss Streak 3 | . 3 . To Critical Strikes . | . . . Average Backups 8 | 4 8 13 Power . | . . 1 Propulsion 1 | 1 1 5 Utility 3 | . 4 4 Weapon 1 | 1 1 2 Tool/Special . | . . . Unused Backups 9 | . 1 8 Power . | . . . Propulsion 2 | . . 2 Utility 5 | . 1 4 Weapon 1 | . . 1 Tool/Special 1 | . . 1 Average Slot Usage (%) 99 | . 99 100 Engine 14 | . 14 14 Treads 4 | . 4 . Leg 11 | . 11 14 Wheel 11 | . 11 14 Device 2 | . 2 . Storage 14 | . 14 14 Hackware 9 | . 9 14 Protection 2 | . 2 . Energy Gun 1 | . 1 . Ballistic Gun 25 | . 25 28 Peak Build Rating 10 | 7 10 10 Average Rating 8 | 6 8 10 On Entrance 5 | . 7 10 Naked Turns . | . . . Heaviest Build 47 | 13 47 47 Greatest Support 40 | 40 40 10 Greatest Overweight (x) 4 | . 4 4 Average Overweight (x) 1 | . 1 4 Largest Inventory Capacity 20 | 8 20 20 Average Capacity 13 | 7 13 20 Most Carried 13 | 6 13 13 Average Carried 8 | 4 8 13 Final Capacity 20 | 8 20 20 Final Carried 13 | 6 13 13 Class Distribution -------------------- 60% | Scavenger-Mutant 39% | Mutant Dominant Class ---------------- Scavenger-Mutant | -10/Materials Scavenger-Mutant | -10/Mines Resources | -11 -10 -10 ----------- Run | Yrd Mat Min Matter Collected 682 | 310 372 . Remotely . | . . . Salvage Created 824 | 102 722 . Parts 61 | 7 54 . Haulers Intercepted . | . . . Recyclers Shooed 2 | . 2 . Parts Field Recycled . | . . . Retrieved Matter . | . . . Parts Self-Destructed . | . . . Prevented . | . . . Kills | -11 -10 -10 ------- Run | Yrd Mat Min Combat Hostiles Destroyed 16 | . 16 . Guns 16 | . 16 . Classes Destroyed 6 | 2 4 . Builder 3 | . 3 . Tunneler 2 | 2 . . Recycler 2 | 1 1 . Operator 2 | . 2 . Swarmer 5 | . 5 . Grunt 11 | . 11 . Best Kill Streak 3 | 1 3 . Combat Bots Only 3 | . 3 . Max Kills in Single Turn 1 | 1 1 . Gunslinging . | . . . Exploded . | . . . Melee . | . . . Uniques/NPCs Destroyed . | . . . Combat | -11 -10 -10 -------- Run | Yrd Mat Min Hostile Shots Fired 163 | . 163 . Missed 47 | . 47 . Hits 116 | . 116 . Projectile 116 | . 116 . AOE 2 | . . 2 Damage Taken 1353 | . 1260 93 Core 252 | . 185 67 Absorbed by Shields . | . . . Regen/Repaired (Parts) 74 | . 74 . Core Remaining (%) 100 | 100 . . Volleys Fired 133 | 16 117 . Largest 2 | 2 2 . Hottest 100 | 40 100 . Shots Fired 232 | 32 200 . Gun 226 | 32 194 . Cannon . | . . . Launcher . | . . . Special 6 | . 6 . Kinetic 194 | 32 162 . Thermal 38 | . 38 . Explosive . | . . . Electromagnetic . | . . . Robot Hit Streak 14 | 8 14 . Robot Miss Streak 4 | 4 4 . Penetration Max . | . . . Secondary Targets 3 | . 3 . Max Gunslinging Chain 1 | . 1 . Shots Hit Robots 144 | 21 123 . Core Hits 57 | 7 50 . Critical Kills 1 | . 1 . Critical Parts Destroyed 1 | . 1 . Critical Strikes 2 | . 2 . Destroy 2 | . 2 . Melee Attacks . | . . . Impact . | . . . Slashing . | . . . Piercing . | . . . Sneak Attacks . | . . . Combat Hostiles . | . . . Follow-up Attacks . | . . . Damage Inflicted 1313 | 164 1149 . Guns 1310 | 161 1149 . Cannons . | . . . Explosions . | . . . Melee . | . . . Ramming 3 | 3 . . Kinetic 1012 | 161 851 . Thermal 298 | . 298 . Explosive . | . . . Electromagnetic . | . . . Impact . | . . . Slashing . | . . . Piercing . | . . . Highest Corruption . | . . . Average Corruption . | . . . Corruption Purged . | . . . Corruption Blocked . | . . . Overload Shots . | . . . Overflow Damage . | . . . Projectiles . | . . . Explosions . | . . . Melee . | . . . Knockbacks . | . . . Impact . | . . . Kinetic . | . . . Secondary . | . . . Self-Inflicted Damage . | . . . Shots . | . . . Rammed 1 | 1 . . Targets Rammed 1 | 1 . . Kicked . | . . . Crushed . | . . . Highest Temperature 264 | . 264 . Average Temperature 55 | . 55 . Received Heat Transfer 495 | . 495 . Siege Activations . | . . . Martial Activations . | . . . Shielding Activations . | . . . Robots Disrupted . | . . . Combat Hostiles . | . . . Robots Corrupted . | . . . Combat Hostiles . | . . . Parts Fried . | . . . Impact Corruptions . | . . . Robots Melted . | . . . Combat Hostiles . | . . . Parts Melted 2 | . 2 . Heat Transferred 888 | . 888 . Parts Sabotaged . | . . . Parts Stolen . | . . . Parts Stripped . | . . . Power Chain Reactions . | . . . Alert | -11 -10 -10 ------- Run | Yrd Mat Min Maximum Alert Level . | . . . Low Security (%) 100 | 100 100 100 Level 1 . | . . . Level 2 . | . . . Level 3 . | . . . Level 4 . | . . . Level 5 . | . . . High Security . | . . . Max Security . | . . . Peak Influence 80 | 5 80 3 Initial 3 | . . 3 Average 19 | . 21 3 Influence Increases 611 | 15 596 . Destroy 0b10 Robot/C 320 | . 320 . Destroy 0b10 Robot/NC 45 | 15 30 . Destroy Leader 70 | . 70 . Trap Triggered on 0b10 10 | . 10 . Successful Hack 45 | . 45 . Select Force Hacks 60 | . 60 . Disable Machine 15 | . 15 . Destroy Structure 1 | . 1 . Lose Combat Pursuer 45 | . 45 . Influence Decreases 608 | 15 587 6 Entered New Map 6 | . . 6 Time Decay 466 | 15 451 . Lost Part 70 | . 70 . Purge Threat 66 | . 66 . Squads Dispatched 4 | . 4 . Investigation 3 | . 3 . Extermination . | . . . Reinforcement 1 | . 1 . Assault . | . . . Garrison . | . . . Intercept . | . . . Searches Triggered . | . . . Construction Impeded . | . . . Haulers Reinforced . | . . . Active Scanning Responses . | . . . Cargo Convoy Interrupts . | . . . Stealth | -11 -10 -10 --------- Run | Yrd Mat Min Distress Signals 5 | . 5 . Communications Jammed . | . . . Distress Signals . | . . . Times Spotted 36 | . 34 2 Peak Tracking Total 6 | . 6 2 Tactical Retreats 2 | . 2 . Traps | -11 -10 -10 ------- Run | Yrd Mat Min Traps Triggered . | . . . Indirectly . | . . . Trap Hack Attempts . | . . . Triggered . | . . . Disarmed . | . . . Reprogrammed 6 | . 6 . Reused 1 | . 1 . Traps Extracted . | . . . Installed . | . . . Triggered 1 | . 1 . Machines | -11 -10 -10 ---------- Run | Yrd Mat Min Machines Disabled 1 | . 1 . Max in Single Turn 1 | . 1 . Machines Repaired . | . . . Machines Dismantled . | . . . Machines Sabotaged . | . . . Overloaded Fab Kills . | . . . Hacking | -11 -10 -10 --------- Run | Yrd Mat Min Machines Accessed 10 | . 10 . Terminals 7 | . 7 . Fabricators . | . . . Repair Stations 1 | . 1 . Recycling Units 2 | . 2 . Scanalyzers . | . . . Garrison Access . | . . . Total Hacks 39 | . 39 . Successful 25 | . 25 . Failed 14 | . 14 . Catastrophic 2 | . 2 . Database Lockouts . | . . . Manual 25 | . 25 . Terminals 31 | . 31 . Fabricators . | . . . Repair Stations 4 | . 4 . Recycling Units 4 | . 4 . Scanalyzers . | . . . Garrison Access . | . . . Terminal Hacks 10 | . 10 . Emergency Access Points 1 | . 1 . Terminal Index 1 | . 1 . Alert Level 1 | . 1 . Unreport Threat 3 | . 3 . Locate Traps 2 | . 2 . Reprogram Traps 1 | . 1 . Hauler Manifests 1 | . 1 . Fabricator Hacks . | . . . Repair Station Hacks 3 | . 3 . Scan Component 1 | . 1 . Repair 1 | . 1 . Refit 1 | . 1 . Recycling Unit Hacks . | . . . Scanalyzer . | . . . Garrison Access Hacks . | . . . Unauthorized Hacks 12 | . 12 . Terminals 10 | . 10 . Track 1 | . 1 . Botnet 3 | . 3 . Skim 6 | . 6 . Fabricators . | . . . Repair Stations . | . . . Recycling Units 2 | . 2 . Tunnel 2 | . 2 . Scanalyzers . | . . . Garrison Access . | . . . Data Cores Recovered 1 | . 1 . Used . | . . . Hacking Detections 9 | . 9 . Full Trace Events 1 | . 1 . Feedback Events . | . . . Feedback Blocked . | . . . Robot Schematics Acquired . | . . . Robots Built . | . . . Authchips . | . . . Time . | . . . Total Robot Build Rating . | . . . Part Schematics Acquired . | . . . Parts Built . | . . . Authchips . | . . . Time . | . . . Total Part Build Rating . | . . . Parts Repaired 1 | . 1 . Time 26 | . 26 . Parts Recycled . | . . . Recycled Matter . | . . . Retrieved Matter . | . . . Retrieved Components . | . . . Parts Scanalyzed . | . . . Part Schematics Acquired . | . . . Parts Damaged . | . . . Bothacking | -11 -10 -10 ------------ Run | Yrd Mat Min Used RIF Installer . | . . . Robots Hacked . | . . . Non-combat . | . . . Combat . | . . . Robot Hacks Applied . | . . . Relay Couplers Released . | . . . Fabnet Peak Effective % . | . . . Robots Rewired . | . . . Allies Hacked . | . . . Hacks Repelled . | . . . Allies | -11 -10 -10 -------- Run | Yrd Mat Min Total Allies . | . . . Largest Group . | . . . Highest-Rated Group . | . . . Highest-Rated Ally . | . . . Total Orders . | . . . Ally Attacks . | . . . Total Damage . | . . . Kills . | . . . Allies Corrupted . | . . . Allies Melted . | . . . Intel | -11 -10 -10 ------- Run | Yrd Mat Min Active Infowar (turns) 473 | 146 327 . Seismic 473 | 146 327 . Robot Analysis Total . | . . . Derelict Logs Recovered . | . . . Drone Launches . | . . . Drone Recoveries . | . . . Exploration | -11 -10 -10 ------------- Run | Yrd Mat Min Turns Passed 2304 | 262 2036 6 Spaces Moved 1196 | 126 1066 4 Core 4 | 4 . . Treads 227 | 122 105 . Legs 137 | . 137 . Wheels 828 | . 824 4 Hover . | . . . Flight . | . . . Fastest Speed 50 | 50 100 140 Average Speed 141 | 156 140 140 Slowest Speed 260 | 160 260 140 Overloaded Moves . | . . . Propulsion Burnouts . | . . . Robots Hopped . | . . . Potential Cave-ins . | . . . Cave-ins Triggered . | . . . Exploration Rate (%) 35 | 7 95 4 Regions Visited 2 Branch Regions 1 Pre-discovered Areas 2 | . 2 . Known Exits Taken . | . . . Unknown Exits Taken 2 | 1 1 . Scrap Searched . | . . . Spaces Dug 2 | . 2 . Terrain Destroyed 2 | . 2 . Melee . | . . . Projectile 2 | . 2 . AOE . | . . . Terrain Rammed . | . . . Walls Destroyed . | . . . Machines Disabled . | . . . Actions | -11 -10 -10 --------- Run | Yrd Mat Min Total 1597 | 161 1432 4 Wait 201 | 6 195 . Move 1194 | 125 1065 4 Hop . | . . . Pick Up 18 | 5 13 . Fast Attach 12 | 7 5 . Attach 9 | . 9 . Detach 8 | . 8 . Swap 11 | 1 10 . Drop 10 | . 10 . Fire 133 | 16 117 . Melee . | . . . Ram . | . . . Kick . | . . . Crush 1 | 1 . . Escape Stasis . | . . . Rewire . | . . . Trap . | . . . Miscellaneous . | . . . Route ------- -11/Scrapyard -10/Materials (discovered 6 exits: [*Mat x3] / [*Min x2] / [*Sub]) -10/Mines History --------- Turn | Location | Event 14 | -11/Scrapyard | Discovered new exit (range 15) 263 | -11/Scrapyard | Entered Materials 326 | -10/Materials | Build established: Mutant 406 | -10/Materials | Discovered new exit (range 15) 562 | -10/Materials | Lost 3 parts (1p1n1w) 698 | -10/Materials | Core integrity fell below 50% 723 | -10/Materials | Discovered new exit (range 13) 1105 | -10/Materials | Repaired Lgt. Assault Rifle 1112 | -10/Materials | Discovered new exit (range 5) 1204 | -10/Materials | Build established: Scavenger-Mutant 1232 | -10/Materials | Discovered new exit (range 8) 1484 | -10/Materials | Discovered new exit (range 15) 1880 | -10/Materials | Discovered new exit (range 5) 2008 | -10/Materials | Learned Storage stockpile data 2062 | -10/Materials | Learned location of 1 exit from Storage 2106 | -10/Materials | Learned 2 Storage zone layouts 2140 | -10/Materials | Loaded intel: 2 recycling unit locations 2185 | -10/Materials | Learned Storage trap positions 2242 | -10/Materials | Learned location of 2 exits from Materials 2299 | -10/Materials | Entered Mines 2300 | -10/Mines | Assembled infested the area 2305 | -10/Mines | Assisted by a Guerilla fighting off Assembled 2305 | -10/Mines | Destroyed by D-53 Grenadier with Mini Grenade Launcher Last Messages --------------- 02223_ K-01 Serf collects debris. 02224_ Acquired Wheel. 02226_ K-01 Serf collects debris. 02242_ >> SKIM: Stored Materials exits (x2). 02242_ >> SKIM: Data seek routine purged. 02267_ K-01 Serf cleans the Matter Pump. 02291_ Dropped Mining Laser. 02293_ Acquired Mining Laser. LOCATION=UNKNOWN GOAL=ESCAPE Something is scanning the area. 02300_ ALERT: Infestation in the mines, dispatching Demolisher response squad. 02305_ A derelict emerges from the shadows: "You need to get out of here! I've been tracking a group of Assembled to figure out where they're coming from, and they're closing on this area, come on!" 02305_ G5-56F(h): "I'll hold them off! Go on ahead or try to find another way!" Map ----- +----------------------------------------------------+ | | | | | | | | | | | | | | | | | | | | | | | | | | | | | | | | | | | | | | | ?????????????????????????????????????????????????? | | ?????????????????????????????????????????????????? | | ?????????????????????????????????????????????????? | | ?????????????????????????????????????????????????? | | ????????????????????????#####????????????????????? | | ??????????????????????### #????????????????????? | | ??????????????????????# @ ##????????????????????? | | ?????????????????????# #????????????????????? | | ???????????# ### h #????????????????????? | | ????????????# d ##????????????????????? | | ?????????????# d% #?????????????????????? | | ?????????????# t#### ?????????????????????? | | ????????????# ?????# ## ##?????????????????????? | | ???????????? ???????## ?# #??????????????????????? | | ?????????????????????# ?# #??????????????????????? | | ?????????????????????#??# #??????????????????????? | | ???????????????????????? ??????????????????????? | | ????????????????????????# ??????????????????????? | | ????????????????????????? ??????????????????????? | | ????????????????????????? ??????????????????????? | | ????????????????????????? ??????????????????????? | | ????????????????????????? ??????????????????????? | | ????????????????????????? ??????????????????????? | | ????????????????????????? ??????????????????????? | | ????????????????????????? ??????????????????????? | | ?????????????????????????????????????????????????? | | ?????????????????????????????????????????????????? | | ?????????????????????????????????????????????????? | | ?????????????????????????????????????????????????? | | ?????????????????????????????????????????????????? | | ?????????????????????????????????????????????????? | +----------------------------------------------------+ Best States ------------- Heat Dissipation 25 Energy Generation 10 Energy Capacity 250 Matter Stores 300 Matter Capacity 300 Sight Range 16 Terrain Scan Density 10 Armor Coverage 150 Evasion (%) 40 Recoil Reduction 2 Offensive Hacking 10 Item Schematics ----------------- None Robot Schematics ------------------ None Fabricated ------------ Nothing Repaired ---------- Lgt. Assault Rifle | 7% | -10/Materials Alien Tech Used ----------------- None Achievements -------------- None Challenges ------------ None Game ------ Seed GuidanceAlphaMeganuke Manual? 0 Play Time 00:16:51 Cumulative 124.3 hours Start 2025.06.07 @ 05:21:16 End 2025.06.07 @ 05:38:04 Sessions 1 Manual Loads 0 Difficulty Rogue Special Mode None Game No. 77 Rogue 77 Adventurer 0 Explorer 0 Win Type - Total 1 Types 1/0/0/0/0/0/0/0/0/0 Lore% 33 Gallery% 47 Achievement% 51 Wizard Run 0 Options --------- Layout 1 ASCII 0 Keyboard 1 Movement Vi Keybinds 1 Fullscreen 1 Font 32/SmallcapsGlow Map View 50x35 Zoom Use 0% Tactical HUD 1 Map Filters NONE Filters NONE Steam X RUN: 34f4e7bf-046b-4082-b9fe-af2472a392ae